fUSD/lending_fUSD_20240125
["ID","MTS","AMOUNT","RATE_DAILY","PERIOD"]
[312711324,1706182238779,-1955.221034,0.00035,2]
[312711486,1706182240373,284.18685088,0.00021891,2]
[312711509,1706182243263,-349.55108866,0.00031178,2]
[312711510,1706182243274,-150.44891134,0.00031178,2]
[312711511,1706182243283,-230.61573396,0.00031178,2]
[312711512,1706182243295,-269.38426604,0.00031178,2]
[312711513,1706182243304,-500.0,0.00031178,2]
[312711514,1706182243313,-500.0,0.00031178,2]
[312711515,1706182243322,-500.0,0.00031178,2]
[312711516,1706182243331,-500.0,0.00031178,2]
[312711517,1706182243340,-500.0,0.00031178,2]
[312711518,1706182243349,-500.0,0.00031178,2]
[312711519,1706182243361,-257.97,0.00031252,2]
[312711520,1706182243372,-257.97,0.00032408,2]
[312711521,1706182243381,-257.97,0.00033564,2]
[312711522,1706182243390,-257.97,0.00034721,2]
[312711523,1706182243399,-407.12946258,0.00035,2]
[312711524,1706182243410,-616.7792413,0.00035,2]
[312711525,1706182243432,-260.63381433,0.00035,2]
[312711526,1706182243444,-1540.42592054,0.00035,2]
[312711527,1706182243456,-1129.52142299,0.00035,2]
[312711528,1706182243467,-77.2094468,0.00035,2]
[312711529,1706182243476,-152.53,0.000355,2]
[312711530,1706182243485,-400.0,0.00035547,2]
[312711531,1706182243494,-1800.5,0.0003561,5]
[312711532,1706182243503,-171.3425177,0.0003569,5]
[312711533,1706182243515,-338.18582961,0.0003569,5]
[312711534,1706182243526,-1312.41165269,0.0003569,5]
[312711535,1706182243537,-1776.3,0.0003569,5]
[312711536,1706182243547,-1843.64,0.0003569,5]
[312711537,1706182243556,-1839.63,0.0003569,5]
[312711538,1706182243565,-257.97,0.00035877,2]
[312711539,1706182243575,-162.0,0.00036,2]
[312711540,1706182243585,-429.53,0.00036379,2]
[312711541,1706182243593,-1765.09499,0.0003643,2]
[312711542,1706182243603,-8471.89020009,0.00036432,2]
[312711543,1706182243617,-1097.10979991,0.00036432,2]
[312711544,1706182243627,-1000.0,0.000365,6]
[312711545,1706182243637,-800.0,0.00036506,5]
[312711546,1706182243646,-1029.67555499,0.000367,9]
[312711547,1706182243655,-152.90661334,0.000367,2]
[312711548,1706182243665,-1231.36254598,0.000367,2]
[312711549,1706182243674,-1025.6952266,0.000367,8]
[312711550,1706182243683,-2842.54318637,0.0003679,10]
[312711551,1706182243707,-59070.82708492,0.0003679,10]
[312711552,1706182243719,-10612.8421424,0.0003679,10]
[312711553,1706182243742,-1453.84772776,0.0003679,10]
[312711554,1706182243753,-1789.13225682,0.0003679,10]
[312711555,1706182243777,-296.95776435,0.0003679,10]
[312711556,1706182243788,-1060.31500001,0.0003679,10]
[312711557,1706182243800,-566.62860673,0.0003679,10]
[312711558,1706182243811,-1610.1893674,0.0003679,10]
[312711559,1706182243857,155.0,0.00021891,2]
[312711560,1706182244108,-11788.37943564,0.0003679,10]
[312711561,1706182244118,-6094.37622186,0.00036797,2]
[312711563,1706182244127,-155.0,0.00036798,4]
[312711565,1706182244136,-382.20928933,0.00036798,4]
[312711567,1706182244145,-201.99882704,0.00036798,4]
[312711568,1706182244154,-580.44663025,0.00036799,2]
[312711569,1706182244163,-164655.62746635,0.000368,2]
[312711570,1706182244175,-82652.80520287,0.000368,2]
[312711571,1706182244186,-489.40630043,0.000368,2]
[312711572,1706182244197,-2215.465,0.000368,2]
[312711573,1706182244208,-384.66897,0.000368,2]
[312711586,1706182246209,828.4004548,0.00021891,2]
[312711587,1706182246241,-433.31643792,0.000368,2]
[312711588,1706182246254,-541.0,0.000368,2]
[312711589,1706182246285,-30368.65862832,0.000368,2]
[312711590,1706182246298,-38960.0,0.000368,2]
[312711591,1706182246378,-6297.98425986,0.000368,2]
[312711592,1706182246409,-776.1,0.000368,2]
[312711593,1706182246424,-1652.23369807,0.000368,2]
[312711594,1706182246486,-339.05105135,0.000368,2]
[312711595,1706182246497,-15076.52881484,0.000368,2]
[312711596,1706182246508,-16906.45,0.000368,2]
[312711599,1706182253652,756.57733941,0.00021672,2]
[312711600,1706182253672,1426.67159507,0.00021672,2]
[312711601,1706182269633,155.42527609,0.00021891,2]
[312711602,1706182269663,1634.87371296,0.00021672,2]
[312711603,1706182269685,548.37522152,0.00021672,2]
[312711604,1706182272035,610.57725012,0.00021891,2]
[312711605,1706182275709,511.00063774,0.00021891,2]
[312711606,1706182278007,344.86275767,0.00021891,2]
[312711607,1706182283178,368.38730643,0.00021891,2]
[312711608,1706182283853,155.0,0.00021891,2]
[312711609,1706182290281,753.63889944,0.00021672,2]
[312711610,1706183005406,155.58318028,0.00021672,2]
[312711634,1706183433903,-361.3216315,0.00026062,2]
[312711635,1706183433916,-270.45745944,0.00026063,2]
[312711636,1706183433931,-500.0,0.00026064,2]
[312711637,1706183433944,-6887.99598632,0.00026065,2]
[312711642,1706183433984,-368.33734168,0.00026065,2]
[312711644,1706183433997,-159.75067163,0.000269,2]
[312711647,1706183434011,-4736.84215398,0.00026998,2]
[312711650,1706183434027,-12643.92971044,0.00026998,2]
[312711694,1706183438513,-334.41374848,0.00026998,2]
[312711695,1706183438545,-399.37201755,0.00026998,2]
[312711696,1706183438557,-218.46288169,0.00026998,2]
[312711697,1706183438568,-3248.19740502,0.00027,2]
[312711698,1706183438579,-5060.50280639,0.00027,2]
[312711699,1706183438660,-2481.29978859,0.00027,2]
[312711700,1706183438670,-158.34,0.00027397,2]
[312711701,1706183438679,-476.789,0.00029299,2]
[312711702,1706183438688,-319.0,0.00029299,2]
[312711703,1706183438697,-209.03,0.00029299,2]
[312711704,1706183438706,-155.0,0.0003,2]
[312711706,1706183438716,-158.34,0.00030137,2]
[312711707,1706183438725,-2863.65,0.00030137,2]
[312711708,1706183438739,-499.99,0.00031252,2]
[312711709,1706183438748,-398.43,0.00031951,2]
[312711710,1706183438757,-5000.0,0.00032,2]
[312711711,1706183438766,-561.1698166,0.0003275,4]
[312711712,1706183438776,-158.34,0.00032877,2]
[312711713,1706183438785,-1500.73,0.00033774,2]
[312711714,1706183438794,-187.35,0.00033804,2]
[312711715,1706183438803,-2000.0,0.00033804,2]
[312711717,1706183438813,-166.67,0.00033879,2]
[312711718,1706183438823,-250.0,0.00033883,2]
[312711720,1706183438833,-250.0,0.00033917,111]
[312711722,1706183438842,-200.0,0.00033949,2]
[312711724,1706183438851,-1000.0,0.00034047,4]
[312711726,1706183438860,-250.0,0.00034048,2]
[312711728,1706183438869,-2965.23,0.00034052,2]
[312711730,1706183438878,-240.0,0.00034087,2]
[312711732,1706183438887,-398.43,0.00034215,2]
[312711734,1706183438897,-153.51,0.00034226,15]
[312711736,1706183438907,-299.47,0.00034229,2]
[312711738,1706183438916,-159.8,0.00034327,2]
[312711740,1706183438925,-207.0,0.00034384,2]
[312711742,1706183438935,-760.0,0.0003453,2]
[312711744,1706183438944,-1812.06513757,0.00034957,4]
[312711746,1706183438953,-10000.0,0.00035,5]
[312711748,1706183438963,-3191.26397536,0.00035326,2]
[312711750,1706183438972,-155.0,0.00036062,7]
[312711752,1706183438981,-159.8,0.00036116,2]
[312711754,1706183438991,-396.39203863,0.00036429,2]
[312711756,1706183439000,-398.43,0.00036479,2]
[312711758,1706183439009,-200.0,0.00036506,5]
[312711760,1706183439018,-800.0,0.00036506,5]
[312711762,1706183439028,-200.0,0.00036506,5]
[312711765,1706183439038,-150.0,0.0003654,2]
[312711767,1706183439047,-1731.31,0.00036689,10]
[312711769,1706183439056,-2204.54,0.00036689,10]
[312711770,1706183439066,-3280.37005069,0.00036689,2]
[312711773,1706183439079,-4501.99024931,0.00036689,2]
[312711775,1706183439088,-465.9504,0.00036689,2]
[312711777,1706183439098,-24580.5988,0.00036699,2]
[312711779,1706183439107,-571.41762827,0.00036699,2]
[312711781,1706183439116,-1169.7944187,0.000367,2]
[312711783,1706183439125,-263.22599815,0.00036797,4]
[312711785,1706183439135,-504.41543892,0.00036797,4]
[312711787,1706183439144,-3005.83468397,0.00036798,9]
[312711789,1706183439154,-719.90550111,0.00036798,4]
[312711791,1706183439164,-601.85065831,0.00036798,20]
[312711793,1706183439174,-158.71925605,0.00036798,4]
[312711795,1706183439183,-700.28754714,0.00036798,4]
[312711797,1706183439193,-343.32510405,0.00036799,30]
[312711799,1706183439202,-216.95528023,0.00036799,2]
[312711801,1706183439211,-1649.71777728,0.00036799,2]
[312711803,1706183439221,-30905.71159087,0.00036799,2]
[312711808,1706183439256,-505.2600185,0.00036799,2]
[312711810,1706183439267,-809.7,0.00036799,2]
[312711915,1706183440826,-1082.02499944,0.00036698,2]
[312711916,1706183441029,-1020.20809265,0.00036698,2]
[312711917,1706183441041,-897.76690791,0.00036698,2]
[312711918,1706183441051,-607.41479987,0.00036799,2]
[312711967,1706183443423,-1837.11,0.00036789,10]
[312711968,1706183443433,-3161.66789013,0.00036799,2]
[312711969,1706183443444,-4096.56022258,0.00036799,2]
[312711970,1706183443480,-11192.99999985,0.00036799,2]
[312711971,1706183443539,-514.59376721,0.00036799,2]
[312711972,1706183443552,-725.39649834,0.00036799,2]
[312711973,1706183443599,-52791.80949999,0.00036799,2]
[312711974,1706183443611,-13564.33202618,0.00036799,2]
[312711975,1706183443620,-192.36317878,0.00036799,2]
[312711976,1706183443629,-4000.0,0.00036799,2]
[312711977,1706183443638,-1470.91249,0.000368,2]
[312711978,1706183443648,-446.0506373,0.00036875,2]
[312711979,1706183443657,-571.41762811,0.00036885,2]
[312711980,1706183443666,-232.3854576,0.000369,2]
[312711981,1706183443675,-207.0,0.00036946,7]
[312711982,1706183443685,-205.44,0.00037,7]
[312711983,1706183443695,-311.63449283,0.00037,4]
[312711984,1706183443704,-150.0,0.00037,30]
[312711986,1706183443713,-571.41762811,0.00037072,2]
[312711988,1706183443723,-150.0,0.000372,30]
[312711989,1706183443732,-571.41762811,0.00037258,2]
[312711990,1706183443744,-152.65373353,0.00037341,13]
[312711991,1706183443753,-206.52541102,0.000374,30]
[312711992,1706183443762,-571.41762811,0.00037445,2]
[312711993,1706183443771,-571.41762811,0.00037631,2]
[312711994,1706183443781,-159.08,0.000377,3]
[312711995,1706183443791,-159.08,0.000377,3]
[312711996,1706183443801,-159.08,0.000377,3]
[312711997,1706183443810,-159.08,0.000377,3]
[312711998,1706183443822,-159.08,0.000377,3]
[312711999,1706183443832,-159.08,0.000377,3]
[312712000,1706183443841,-159.08,0.000377,3]
[312712001,1706183443851,-159.08,0.000377,3]
[312712002,1706183443860,-159.08,0.000377,3]
[312712003,1706183443869,-159.08,0.000377,3]
[312712005,1706183443878,-159.08,0.000377,3]
[312712006,1706183443888,-159.08,0.000377,3]
[312712007,1706183443897,-159.08,0.000377,3]
[312712008,1706183443907,-159.08,0.000377,3]
[312712009,1706183443917,-159.08,0.000377,3]
[312712010,1706183443926,-159.08,0.000377,3]
[312712011,1706183443935,-159.08,0.000377,3]
[312712012,1706183443945,-159.08,0.000377,3]
[312712013,1706183443954,-159.08,0.000377,3]
[312712014,1706183443964,-159.08,0.000377,3]
[312712015,1706183443973,-943.86925875,0.000378,11]
[312712016,1706183443983,-5000.0,0.000378,3]
[312712017,1706183443992,-152.90661334,0.000378,2]
[312712018,1706183444001,-571.41762811,0.00037818,2]
[312712019,1706183444011,-3764.8017097,0.0003789,10]
[312712020,1706183444021,-2370.03519739,0.00037897,2]
[312712021,1706183444030,-412.0,0.000379,5]
[312712022,1706183444039,-35584.5402408,0.000379,2]
[312712023,1706183444066,-4272.69298,0.000379,2]
[312712034,1706183446467,-915.3232241,0.000379,2]
[312712042,1706183446566,-919.84914807,0.000379,2]
[312712044,1706183446578,-8552.7044,0.000379,2]
[312712046,1706183446637,-766.7343008,0.000379,2]
[312712047,1706183446649,-20020.94620973,0.000379,2]
[312712048,1706183446685,-3631.89476457,0.000379,2]
[312712049,1706183446703,-6974.39745659,0.000379,2]
[312712050,1706183446722,-14424.99778769,0.000379,2]
[312712051,1706183476115,1052.25459755,0.00021672,2]
[312712052,1706183478058,2579.55688131,0.00021,2]
[312712053,1706183504322,544.93064915,0.00021,7]
[312712055,1706183721928,177.96,0.00026541,120]
[312712058,1706184199046,150.0,0.00022,2]
[312712059,1706184230000,150.0,0.00022,2]
[312712086,1706184631486,-252.04447886,0.00022014,2]
[312712087,1706184631496,-155.0,0.00022014,2]
[312712088,1706184631505,-3000.0,0.00022014,2]
[312712089,1706184631514,-475.09765273,0.00022014,2]
[312712090,1706184631527,-2139.15,0.00022014,2]
[312712091,1706184631539,-4855.95234727,0.00022014,2]
[312712092,1706184631548,-2500.0,0.00022015,3]
[312712093,1706184631558,-150.0,0.00022067,2]
[312712094,1706184631567,-9069.659406,0.00022068,2]
[312712095,1706184631576,-1092.0,0.00022068,2]
[312712096,1706184631585,-203.94193667,0.00022072,2]
[312712097,1706184631594,-159.81,0.00022105,2]
[312712098,1706184631604,-808.0,0.00022112,2]
[312712099,1706184631613,-1204.95,0.00022165,2]
[312712100,1706184631622,-157.96,0.00022165,2]
[312712101,1706184631631,-505.69,0.00022174,2]
[312712102,1706184631640,-250.0,0.00022264,2]
[312712103,1706184631649,-250.0,0.00022421,2]
[312712104,1706184631659,-178.92,0.00022501,2]
[312712105,1706184631668,-176.35630077,0.00022548,2]
[312712106,1706184631677,-210.75911877,0.00022548,2]
[312712107,1706184631686,-2000.0,0.00022583,2]
[312712108,1706184631695,-448.33,0.00022583,2]
[312712109,1706184631704,-21447.87122422,0.00022897,2]
[312712110,1706184631714,-6012.5957,0.00022899,2]
[312712111,1706184631722,-1410.33093654,0.00022899,2]
[312712112,1706184631732,-1542.70806211,0.000229,2]
[312712113,1706184631742,-153.15631885,0.000229,2]
[312712114,1706184631752,-203.94193667,0.000229,2]
[312712115,1706184631763,-770.7323254,0.000229,2]
[312712116,1706184631773,-239.45781894,0.0002299,2]
[312712117,1706184631782,-273.07643202,0.00022997,2]
[312712118,1706184631791,-848.13970828,0.00022997,2]
[312712119,1706184631801,-235.38203165,0.00022997,2]
[312712120,1706184631810,-486.66955203,0.00022997,2]
[312712121,1706184631819,-25689.90412185,0.00022998,2]
[312712123,1706184631828,-201.85769498,0.00022999,2]
[312712125,1706184631838,-196.98832126,0.00022999,2]
[312712127,1706184631847,-150.99,0.00022999,2]
[312712129,1706184631857,-58709.42861018,0.00022999,2]
[312712130,1706184631869,-388.388,0.00022999,2]
[312712131,1706184631902,-15496.81778768,0.00022999,2]
[312712132,1706184632005,-2329.09443745,0.00022999,2]
[312712133,1706184632018,-1551.76,0.00022999,2]
[312712134,1706184632031,-818.26057678,0.00022999,2]
[312712135,1706184632043,-485.80288671,0.00022999,2]
[312712136,1706184632056,-408.25,0.00022999,2]
[312712137,1706184632069,-634.478075,0.00022999,2]
[312712138,1706184632135,-22875.75085157,0.00022999,2]
[312712139,1706184632150,-464.24685184,0.00022999,2]
[312712148,1706184637489,-976.559396,0.00022999,2]
[312712149,1706184637500,-558.62149537,0.00022999,2]
[312712151,1706184637553,-400718.8626638,0.00022999,2]
[312712152,1706184637563,-436.53719805,0.00022999,2]
[312712153,1706184637572,-364.3103057,0.00022999,2]
[312712154,1706184637582,-500.0,0.00022999,2]
[312712155,1706184637592,-306.13298816,0.00022999,2]
[312712156,1706184637600,-500.0,0.00022999,2]
[312712157,1706184637610,-4406954.20417506,0.00023,2]
[312712158,1706184637619,-223.07409071,0.00023,20]
[312712159,1706184637628,-129223.96610288,0.00023,2]
[312712160,1706184637637,-197.33,0.00023063,2]
[312712161,1706184637646,-347.68449445,0.0002313,2]
[312712162,1706184637656,-837.15,0.00023296,2]
[312712163,1706184637664,-197.33,0.00023917,2]
[312712164,1706184637673,-505.69,0.00024438,2]
[312712165,1706184637683,-1542.7080621,0.00024483,2]
[312712166,1706184637692,-178.92,0.00024556,2]
[312712167,1706184637702,-250.0,0.00024658,2]
[312712168,1706184637711,-197.33,0.0002477,2]
[312712169,1706184637720,-808.0,0.00024876,2]
[312712170,1706184637730,-534.78120717,0.00025,2]
[312712171,1706184637739,-229.57187333,0.00025,2]
[312712172,1706184637748,-450.0,0.00025,3]
[312712173,1706184637758,-192.0,0.00025364,2]
[312712174,1706184637767,-196.69,0.00025364,10]
[312712175,1706184637776,-197.33,0.00025623,2]
[312712176,1706184637786,-1410.33093652,0.00025756,2]
[312712177,1706184637795,-500.0,0.00026,2]
[312712178,1706184637805,-1542.7080621,0.00026066,2]
[312712179,1706184637814,-197.33,0.00026477,2]
[312712180,1706184637823,-479.24,0.00026575,2]
[312712181,1706184637832,-178.92,0.0002661,2]
[312712182,1706184637845,-153.1563188,0.00026636,2]
[312712183,1706184637855,-505.69,0.00026702,2]
[312712185,1706184637864,-209.66,0.00026747,2]
[312712187,1706184637874,-12796.0,0.00027,2]
[312712189,1706184637884,-500.0,0.00027,3]
[312712191,1706184637893,-157.52890897,0.00027397,2]
[312712193,1706184637902,-309.31,0.00027397,2]
[312712195,1706184637912,-169.58,0.000274,2]
[312712218,1706184638095,-169.58,0.000274,2]
[312712222,1706184638149,-169.58,0.000274,2]
[312712224,1706184638159,-169.58,0.000274,2]
[312712226,1706184638168,-169.58,0.000274,2]
[312712228,1706184638179,-169.58,0.000274,2]
[312712230,1706184638189,-169.58,0.000274,2]
[312712232,1706184638198,-169.58,0.000274,2]
[312712234,1706184638207,-169.58,0.000274,2]
[312712236,1706184638216,-169.58,0.000274,2]
[312712238,1706184638226,-808.0,0.0002764,2]
[312712240,1706184638236,-1542.7080621,0.00027649,2]
[312712242,1706184638245,-309.31,0.00027686,2]
[312712244,1706184638255,-196.69,0.00027849,10]
[312712246,1706184638264,-309.31,0.00027974,2]
[312712248,1706184638274,-309.31,0.00028262,2]
[312712250,1706184638283,-2274.0,0.00028339,2]
[312712252,1706184638293,-192.0,0.00028534,2]
[312712254,1706184638302,-309.31,0.00028551,2]
[312712256,1706184638311,-1410.33093652,0.00028614,4]
[312712258,1706184638320,-4578.44046662,0.00028614,6]
[312712260,1706184638329,-178.92,0.00028665,2]
[312712262,1706184638341,-309.31,0.00028839,2]
[312712264,1706184638351,-505.69,0.00028965,2]
[312712266,1706184638359,-1001.4,0.00029,2]
[312712268,1706184638368,-616.39154108,0.00029,15]
[312712270,1706184638378,-550.0,0.00029,3]
[312712272,1706184638387,-309.31,0.00029128,2]
[312712274,1706184638396,-1542.7080621,0.00029232,2]
[312712276,1706184638405,-905.515,0.00029409,2]
[312712278,1706184638414,-570.218,0.00029409,2]
[312712280,1706184638423,-1233.0,0.00029409,2]
[312712282,1706184638432,-1251.0,0.00029409,2]
[312712284,1706184638441,-775.863,0.00029409,2]
[312712286,1706184638450,-1138.0,0.00029409,2]
[312712288,1706184638459,-316.95,0.00029409,2]
[312712290,1706184638468,-309.31,0.00029416,2]
[312712292,1706184638477,-309.31,0.00029704,2]
[312712294,1706184638486,-309.31,0.00029993,2]
[312712296,1706184638495,-1058.40994365,0.0003,2]
[312712298,1706184638504,-628.65728134,0.0003,4]
[312712300,1706184638513,-155.0,0.0003,2]
[312712302,1706184638522,-309.31,0.00030281,2]
[312712304,1706184638531,-448.37690115,0.00030318,4]
[312712306,1706184638540,-153.1563188,0.00030371,2]
[312712308,1706184638549,-808.0,0.00030404,2]
[312712310,1706184638558,-309.31,0.00030569,2]
[312712312,1706184638567,-178.92,0.0003072,2]
[312712314,1706184638576,-1542.7080621,0.00030815,2]
[312712316,1706184638586,-309.31,0.00030858,2]
[312712318,1706184638596,-5843.99207667,0.00031099,14]
[312712320,1706184638604,-309.31,0.00031146,2]
[312712322,1706184638614,-505.69,0.00031229,2]
[312712324,1706184638624,-770.73232538,0.000313,2]
[312712326,1706184638633,-206.0,0.00031384,2]
[312712328,1706184638642,-309.31,0.00031435,2]
[312712329,1706184638651,-1410.33093652,0.00031471,5]
[312712331,1706184638660,-90724.26212099,0.000317,2]
[312712333,1706184638669,-192.0,0.00031705,2]
[312712335,1706184638678,-309.31,0.00031723,2]
[312712337,1706184638687,-5000.0,0.00032,2]
[312712339,1706184638696,-309.31,0.00032011,2]
[312712341,1706184638705,-309.31,0.000323,2]
[312712343,1706184638714,-1542.7080621,0.00032398,4]
[312712345,1706184638723,-309.31,0.00032588,2]
[312712347,1706184638732,-371.42145827,0.000327,2]
[312712349,1706184638742,-371.42145827,0.000327,2]
[312712351,1706184638751,-371.42145827,0.000327,2]
[312712353,1706184638760,-371.42145827,0.000327,2]
[312712355,1706184638769,-371.42145827,0.000327,2]
[312712357,1706184638777,-371.42145827,0.000327,2]
[312712359,1706184638786,-371.42145827,0.000327,2]
[312712360,1706184638795,-371.42145827,0.000327,2]
[312712363,1706184638804,-371.42145827,0.000327,2]
[312712364,1706184638813,-371.42145827,0.000327,2]
[312712366,1706184638823,-371.42145827,0.000327,2]
[312712368,1706184638831,-371.42145827,0.000327,2]
[312712370,1706184638841,-371.42145827,0.000327,2]
[312712372,1706184638850,-371.42145827,0.000327,2]
[312712375,1706184638859,-371.42145827,0.000327,2]
[312712376,1706184638867,-371.42145827,0.000327,2]
[312712378,1706184638876,-309.31,0.00032877,2]
[312712380,1706184638885,-153.51,0.00032877,15]
[312712382,1706184638894,-808.0,0.00033168,2]
[312712384,1706184638904,-505.69,0.00033493,2]
[312712386,1706184638912,-206.0,0.00033769,6]
[312712388,1706184638922,-1542.7080621,0.00033981,6]
[312712391,1706184638931,-1000.0,0.00034,4]
[312712393,1706184638940,-153.1563188,0.00034107,2]
[312712395,1706184638950,-1410.33093652,0.00034328,6]
[312712397,1706184638960,-369.0,0.00034739,5]
[312712399,1706184638969,-192.0,0.00034875,2]
[312712401,1706184638979,-1111.30469767,0.000349,2]
[312712403,1706184638988,-1111.30469765,0.000349,2]
[312712405,1706184638998,-1111.30469765,0.000349,2]
[312712407,1706184639007,-1111.30469765,0.000349,2]
[312712410,1706184639015,-1111.30469765,0.000349,2]
[312712412,1706184639024,-1111.30469765,0.000349,2]
[312712414,1706184639034,-1111.30469765,0.000349,2]
[312712415,1706184639043,-1111.30469765,0.000349,2]
[312712416,1706184639052,-961.96985758,0.00035,2]
[312712417,1706184639061,-185.4250769,0.00035,2]
[312712418,1706184639070,-227.39380944,0.00035,2]
[312712419,1706184639079,-25688.31610896,0.00035,2]
[312712420,1706184639091,-1111.30469765,0.00035531,2]
[312712421,1706184639103,-1542.7080621,0.00035564,8]
[312712422,1706184639115,-15793.85592849,0.000356,2]
[312712424,1706184639520,-442.493,0.000356,2]
[312712425,1706184639540,-15579.73771751,0.000356,2]
[312712426,1706184639549,-2038.53170929,0.000357,2]
[312712427,1706184639560,-13082.17829071,0.000357,2]
[312712428,1706184639568,-505.69,0.00035757,2]
[312712429,1706184639577,-719.910823,0.00035975,2]
[312712430,1706184639586,-2106.69795324,0.00035997,2]
[312712431,1706184639597,-63353.70372217,0.00036,30]
[312712432,1706184639608,-1403.00891327,0.00036,30]
[312712433,1706184639622,-9603.7401185,0.00036,30]
[312712434,1706184639634,-1964.82826032,0.00036,30]
[312712435,1706184639645,-1106.75453711,0.00036,30]
[312712436,1706184639664,-394.73047548,0.00036,30]
[312712437,1706184639677,-587.61236239,0.00036,30]
[312712438,1706184639688,-1872.84734254,0.00036,30]
[312712439,1706184639700,-5777.00175771,0.00036,30]
[312712440,1706184639719,-505.7999905,0.00036,30]
[312712441,1706184640203,-429.27690379,0.00029827,2]
[312712442,1706184640216,-821.32309621,0.00029827,2]
[312712443,1706184640225,-1041.43722434,0.00036,30]
[312712444,1706184640244,-665.55776457,0.00036,30]
[312712446,1706184642727,-200.0,0.00022165,2]
[312712447,1706184642737,-5294.98237942,0.00036,30]
[312712448,1706184642762,-464.89426775,0.00036,30]
[312712449,1706184642783,-813.9352847,0.00036,30]
[312712451,1706184642795,-691.47300568,0.00036,30]
[312712463,1706184642897,-658.89701571,0.00036,30]
[312712466,1706184642908,-38818.76399997,0.00036,30]
[312712469,1706184642924,-1058.40994365,0.00036,30]
[312712472,1706184642935,-9233.68984971,0.00036,30]
[312712474,1706184642954,-216304.15332399,0.00036,30]
[312712487,1706184643061,-3968.13798724,0.00036,30]
[312712490,1706184643126,-19242.67232804,0.00036,30]
[312712491,1706184643144,-803.92841362,0.00036,30]
[312712492,1706184643155,-1583.15590283,0.00036,30]
[312712493,1706184643183,-695.22988257,0.00036,30]
[312712494,1706184643194,-1273.64359534,0.00036,30]
[312712495,1706184643206,-2782.0195994,0.00036,30]
[312712496,1706184643240,-855.62630079,0.00036,30]
[312712497,1706184643251,-352.72799642,0.00036,30]
[312712498,1706184643298,-688.83619537,0.00036,30]
[312712504,1706184643523,-92361.12103445,0.00036,30]
[312712505,1706184643532,-151.0,0.00036,7]
[312712506,1706184643541,-151.0,0.00036,7]
[312712507,1706184643550,-287.586202,0.00036,7]
[312712508,1706184643559,-287.586202,0.00036,7]
[312712509,1706184643569,-151.0,0.00036,7]
[312712510,1706184643578,-151.0,0.00036,7]
[312712511,1706184643588,-151.0,0.00036,7]
[312712512,1706184643597,-152.656963,0.00036,7]
[312712513,1706184643606,-151.0,0.00036,7]
[312712514,1706184643614,-151.0,0.00036,7]
[312712515,1706184643623,-151.0,0.00036,7]
[312712516,1706184643633,-151.0,0.00036,7]
[312712518,1706184643642,-151.0,0.00036,7]
[312712519,1706184643650,-453.408895,0.00036,7]
[312712520,1706184643659,-151.0,0.00036,7]
[312712521,1706184643669,-453.408895,0.00036,7]
[312712522,1706184643677,-151.059123,0.00036,7]
[312712523,1706184643687,-151.059123,0.00036,7]
[312712524,1706184643695,-151.0,0.00036,7]
[312712525,1706184643705,-196.8801,0.00036,7]
[312712526,1706184643714,-151.0,0.00036,7]
[312712527,1706184643723,-510.775027,0.00036,7]
[312712528,1706184643732,-510.775027,0.00036,7]
[312712529,1706184643741,-283.311977,0.00036,7]
[312712530,1706184643750,-283.311977,0.00036,7]
[312712531,1706184643759,-151.0,0.00036,7]
[312712532,1706184643768,-206.0,0.00036153,11]